OrganisationURI,OrganisationLabel,OrganisationalUnit,TransactionNumber,Invoice Ref.,BeneficiaryName,Expense Type,Purpose,PaymentDate,Amount,
http://statistics.data.gov.uk/id/local-authority-district/23UB,Cheltenham Borough Council,Cheltenham Depot,14046644,186115,A & E Fire Equipment Limited,R2004-ADB103,R & M of Build Programmed,05/08/2016,"2,146.88 ",
http://statistics.data.gov.uk/id/local-authority-district/23UB,Cheltenham Borough Council,Cheltenham Depot,14046645,186117,A & E Fire Equipment Limited,R2004-ADB103,R & M of Build Programmed,05/08/2016,898.40 ,
http://statistics.data.gov.uk/id/local-authority-district/23UB,Cheltenham Borough Council,Repairs and Maintenance,14046434,186140,A & E Fire Equipment Limited,R2083-HRA100,R&M of Build - Routine,05/08/2016,597.36 ,
http://statistics.data.gov.uk/id/local-authority-district/23UB,Cheltenham Borough Council,Cheltenham Depot,14046643,186166,A & E Fire Equipment Limited,R2004-ADB103,R & M of Build Programmed,05/08/2016,"2,640.40 ",
http://statistics.data.gov.uk/id/local-authority-district/23UB,Cheltenham Borough Council,Prince of Wales Stadium Repairs & Maintenance,14046724,PSI110393,AllCoopers Limited,R2004-REC112,R & M of Build Programmed,05/08/2016,"2,661.95 ",
http://statistics.data.gov.uk/id/local-authority-district/23UB,Cheltenham Borough Council,Recreation Centre Repairs & Maintenance,14046725,PSI110394,AllCoopers Limited,R2004-REC111,R & M of Build Programmed,05/08/2016,"3,500.00 ",
http://statistics.data.gov.uk/id/local-authority-district/23UB,Cheltenham Borough Council,Council Tax Collection,14046930,66128,Alpha Colour Printers Limited,R4300-LTC001,Printing - Services,19/08/2016,918.00 ,
http://statistics.data.gov.uk/id/local-authority-district/23UB,Cheltenham Borough Council,Cheltenham Municipal Offices,14046672,3115456,Angel Springs Limited,R2083-ADB101,R&M of Build - Routine,05/08/2016,"3,249.75 ",
http://statistics.data.gov.uk/id/local-authority-district/23UB,Cheltenham Borough Council,JCS Affordable Housing Capacity Funding,14046708,9603,Ark Housing Consultancy LLP,R4401-HOS100,Services - Fees and Charges,12/08/2016,"1,550.00 ",
http://statistics.data.gov.uk/id/local-authority-district/23UB,Cheltenham Borough Council,Environmental Health General,14046707,83183,Atlantic Umbrella Company Limited,R1100-REG001,Agency Staff,05/08/2016,588.00 ,
http://statistics.data.gov.uk/id/local-authority-district/23UB,Cheltenham Borough Council,Environmental Health General,14046903,83355,Atlantic Umbrella Company Limited,R1100-REG001,Agency Staff,12/08/2016,560.00 ,
http://statistics.data.gov.uk/id/local-authority-district/23UB,Cheltenham Borough Council,Development costs - Garage Sites 2a,14046809,27304/ME/ab BH:46335,Baily Garner LLP,C1107-CAH052,Building Works,12/08/2016,"2,045.29 ",
http://statistics.data.gov.uk/id/local-authority-district/23UB,Cheltenham Borough Council,Development costs - Garage Sites 2a,14046751,27304/ME/ab BH:47179,Baily Garner LLP,C1107-CAH052,Building Works,12/08/2016,"1,672.28 ",
http://statistics.data.gov.uk/id/local-authority-district/23UB,Cheltenham Borough Council,Income and Expenditure on Investment Properties and Changes in Their Fair Value,14046674,TW/936,Bear Associates Surveyors Limited,R4400-FIE040,Services - Professional Fees,05/08/2016,"2,000.00 ",
http://statistics.data.gov.uk/id/local-authority-district/23UB,Cheltenham Borough Council,Sports & Open Spaces Repairs & Maintenance,14047049,TW938,Bear Associates Surveyors Limited,R4400-OPS122,Services - Professional Fees,26/08/2016,"1,500.00 ",
http://statistics.data.gov.uk/id/local-authority-district/23UB,Cheltenham Borough Council,Cheltenham Business Partnership,14046700,160729-063,Blackadder Media Limited,R4411-HLD130,Consultancy Fees,05/08/2016,"4,926.59 ",
http://statistics.data.gov.uk/id/local-authority-district/23UB,Cheltenham Borough Council,Animal Control,14046684,800306037,Bromsgrove District Council,R4401-REG003,Services - Fees and Charges,05/08/2016,"1,115.00 ",
http://statistics.data.gov.uk/id/local-authority-district/23UB,Cheltenham Borough Council,Animal Control,14046790,800307564,Bromsgrove District Council,R4413-REG003,Dog Kennels Fees,12/08/2016,"1,960.00 ",
http://statistics.data.gov.uk/id/local-authority-district/23UB,Cheltenham Borough Council,"Cemetery, Crematorium and Churchyards",14047006,CM675,CAMEO,R4400-CCM001,Services - Professional Fees,19/08/2016,"52,416.00 ",
http://statistics.data.gov.uk/id/local-authority-district/23UB,Cheltenham Borough Council,Homelessness,14046891,38,Cheltenham Housing Aid Centre,R6280-HOM001,Grants,12/08/2016,"8,250.00 ",
http://statistics.data.gov.uk/id/local-authority-district/23UB,Cheltenham Borough Council,Trees,14046794,CBC/020816,Cheltenham Tree Services Limited,R2070-PLP006,Tree Work,12/08/2016,850.00 ,
http://statistics.data.gov.uk/id/local-authority-district/23UB,Cheltenham Borough Council,Car Parks - Off Street Operations,14046949,121-007302,Chiefield Limited T/A Brown Advertising And Design,R4300-CPK001,Printing - Services,19/08/2016,"1,990.80 ",
http://statistics.data.gov.uk/id/local-authority-district/23UB,Cheltenham Borough Council,Supervision and Management,14047064,48,Chris Arnold Tree Surgery,R2070-HRA110,Tree Work,19/08/2016,"6,250.00 ",
http://statistics.data.gov.uk/id/local-authority-district/23UB,Cheltenham Borough Council,War Memorials,14046815,11947,Cliveden Conservation Workshop Ltd,R2078-CUL002,R&M of Build - external structures,19/08/2016,"8,374.96 ",
http://statistics.data.gov.uk/id/local-authority-district/23UB,Cheltenham Borough Council,"Cemetery, Crematorium and Churchyards",14046719,563253,Comensura Limited,R1100-CCM001,Agency Staff,05/08/2016,"5,862.39 ",
http://statistics.data.gov.uk/id/local-authority-district/23UB,Cheltenham Borough Council,"Cemetery, Crematorium and Churchyards",14046900,563574,Comensura Limited,R1100-CCM001,Agency Staff,12/08/2016,"1,591.73 ",
http://statistics.data.gov.uk/id/local-authority-district/23UB,Cheltenham Borough Council,Flood Risk Management,14046802,c27466,Cotswold Drain Service Limited,R5001-FRM101,TPP - Major External Contractors,12/08/2016,680.00 ,
http://statistics.data.gov.uk/id/local-authority-district/23UB,Cheltenham Borough Council,Play areas (Section 106),14046740,957,D A Jones Landscapes,C4000-CAP101,Acquisition of Equipment,05/08/2016,605.00 ,
http://statistics.data.gov.uk/id/local-authority-district/23UB,Cheltenham Borough Council,Play areas (Section 106),14046740,957,D A Jones Landscapes,C4000-CAP101,Acquisition of Equipment,05/08/2016,-740.00 ,
http://statistics.data.gov.uk/id/local-authority-district/23UB,Cheltenham Borough Council,Play areas (Section 106),14046740,957,D A Jones Landscapes,C4000-CAP101,Acquisition of Equipment,05/08/2016,740.00 ,
http://statistics.data.gov.uk/id/local-authority-district/23UB,Cheltenham Borough Council,"Cemetery, Crematorium and Churchyards",14047143,G1202,D Jones T/A Moonbeam,R2076-CCM001,Grounds Maintenance - Non Contract,26/08/2016,500.00 ,
http://statistics.data.gov.uk/id/local-authority-district/23UB,Cheltenham Borough Council,Community Development,14046882,31st July 2016- (23) DHR-KP,REDACTED,R6280-COM001,Grants,19/08/2016,"1,525.00 ",
http://statistics.data.gov.uk/id/local-authority-district/23UB,Cheltenham Borough Council,Repairs and Maintenance,14046699,1180516/CBHGA.final,Down to Earth Stroud,R5012-HRA100,Minor Neighbourhood Works - Oakley Areas,05/08/2016,602.50 ,
http://statistics.data.gov.uk/id/local-authority-district/23UB,Cheltenham Borough Council,Joint Core Strategy,14046405,29199,DPDS Regional Limited - DPDS Consulting Group,R4400-PLP101,Services - Professional Fees,05/08/2016,"1,000.00 ",
http://statistics.data.gov.uk/id/local-authority-district/23UB,Cheltenham Borough Council,Car Parks - Off Street R&M,14046676,447410,DTZ DTL Limited,R2001-CPK101,R & M of Fix & Fit - General,05/08/2016,"16,462.56 ",
http://statistics.data.gov.uk/id/local-authority-district/23UB,Cheltenham Borough Council,Cheltenham Municipal Offices,14046702,15169,Elevate Consulting Limited,R4400-ADB101,Services - Professional Fees,05/08/2016,"3,875.00 ",
http://statistics.data.gov.uk/id/local-authority-district/23UB,Cheltenham Borough Council,Environmental Works (Tenant Selection),14046788,WM007251,English Landscapes Limited t/a The Landscape Group,C1107-CAH029,Building Works,12/08/2016,"1,980.22 ",
http://statistics.data.gov.uk/id/local-authority-district/23UB,Cheltenham Borough Council,Neighbourhood works,14046867,WM007261,English Landscapes Limited t/a The Landscape Group,C1107-CAH005,Building Works,19/08/2016,"44,448.27 ",
http://statistics.data.gov.uk/id/local-authority-district/23UB,Cheltenham Borough Council,Sustainability Measures,14046693,1682,Evolve Home Energy Solutions Limited,C1107-CAH032,Building Works,05/08/2016,"1,234.20 ",
http://statistics.data.gov.uk/id/local-authority-district/23UB,Cheltenham Borough Council,Parks & Gardens Operations,14046865,FR0252,Future Rooms Limited,R2075-OPS001,Grounds Maintenance - Contract,12/08/2016,580.00 ,
http://statistics.data.gov.uk/id/local-authority-district/23UB,Cheltenham Borough Council,Parks & Gardens Operations,14046865,FR0252,Future Rooms Limited,R2075-OPS001,Grounds Maintenance - Contract,12/08/2016,"3,112.00 ",
http://statistics.data.gov.uk/id/local-authority-district/23UB,Cheltenham Borough Council,External Improvements,14046196,GP15/020261,G Purchase Construction Limited,C1107-CAH003,Building Works,05/08/2016,"117,887.21 ",
http://statistics.data.gov.uk/id/local-authority-district/23UB,Cheltenham Borough Council,External Improvements,14046196,GP15/020261,G Purchase Construction Limited,C1107-CAH003,Building Works,05/08/2016,"-117,887.21 ",
http://statistics.data.gov.uk/id/local-authority-district/23UB,Cheltenham Borough Council,External Improvements,14046196,GP15/020261,G Purchase Construction Limited,C1107-CAH003,Building Works,05/08/2016,"117,887.21 ",
http://statistics.data.gov.uk/id/local-authority-district/23UB,Cheltenham Borough Council,Miscellaneous Works,14047060,GP15/020767,G Purchase Construction Limited,C1107-CAH013,Building Works,26/08/2016,"84,442.47 ",
http://statistics.data.gov.uk/id/local-authority-district/23UB,Cheltenham Borough Council,Development costs - Swindon Road,14046810,G011608,Gage-Tupper & Associates Limited,C1107-CAH050,Building Works,12/08/2016,"1,572.00 ",
http://statistics.data.gov.uk/id/local-authority-district/23UB,Cheltenham Borough Council,Trees,14046431,245,Gaskins Treework Specialists,R2070-PLP006,Tree Work,05/08/2016,628.00 ,
http://statistics.data.gov.uk/id/local-authority-district/23UB,Cheltenham Borough Council,Flood Risk Management,14046805,246,Gaskins Treework Specialists,R5001-FRM101,TPP - Major External Contractors,12/08/2016,"1,650.00 ",
http://statistics.data.gov.uk/id/local-authority-district/23UB,Cheltenham Borough Council,Economic Development,14046991,39,GFirst LEP CIC,R4545-ECD001,IT - Interface Development,19/08/2016,"7,000.00 ",
http://statistics.data.gov.uk/id/local-authority-district/23UB,Cheltenham Borough Council,Disabled Facility Grants,14047136,1800404440,Gloucestershire County Council,C5000-CAP221,Grants,26/08/2016,"8,000.00 ",
http://statistics.data.gov.uk/id/local-authority-district/23UB,Cheltenham Borough Council,Pensions Backfunding,14046942,800006735,GLOUCESTERSHIRE COUNTY COUNCIL (LGPS ONLY),R1301-SUP038,Enhanced Pension,19/08/2016,"16,821.24 ",
http://statistics.data.gov.uk/id/local-authority-district/23UB,Cheltenham Borough Council,Pensions Backfunding,14046943,800006750,GLOUCESTERSHIRE COUNTY COUNCIL (LGPS ONLY),R4400-SUP038,Services - Professional Fees,19/08/2016,663.30 ,
http://statistics.data.gov.uk/id/local-authority-district/23UB,Cheltenham Borough Council,Planning Policy,14046950,3696,Gloucestershire Wildlife Trust,R4400-PLP001,Services - Professional Fees,19/08/2016,"4,920.00 ",
http://statistics.data.gov.uk/id/local-authority-district/23UB,Cheltenham Borough Council,Building Control - Fee Earning Work,14046649,0229/16,Graham Harper Associates Limited,R1100-BUC001,Agency Staff,05/08/2016,"3,214.22 ",
http://statistics.data.gov.uk/id/local-authority-district/23UB,Cheltenham Borough Council,Building Control - Fee Earning Work,14046652,0232/16,Graham Harper Associates Limited,R1100-BUC001,Agency Staff,05/08/2016,"3,376.56 ",
http://statistics.data.gov.uk/id/local-authority-district/23UB,Cheltenham Borough Council,Building Control - Fee Earning Work,14046651,0233/16,Graham Harper Associates Limited,R1100-BUC001,Agency Staff,05/08/2016,"2,598.60 ",
http://statistics.data.gov.uk/id/local-authority-district/23UB,Cheltenham Borough Council,Building Control - Fee Earning Work,14046650,0234/16,Graham Harper Associates Limited,R1100-BUC001,Agency Staff,05/08/2016,"4,110.57 ",
http://statistics.data.gov.uk/id/local-authority-district/23UB,Cheltenham Borough Council,Cheltenham Depot,14046592,3420,Greenway Partnership Limited T/A GPL Building Services,R2043-ADB103,R & M of Build Drain Cleaning,05/08/2016,"1,232.08 ",
http://statistics.data.gov.uk/id/local-authority-district/23UB,Cheltenham Borough Council,Parks & Gardens Repairs & Maintenance,14046772,3450,Greenway Partnership Limited T/A GPL Building Services,R2004-OPS121,R & M of Build Programmed,12/08/2016,"6,509.00 ",
http://statistics.data.gov.uk/id/local-authority-district/23UB,Cheltenham Borough Council,Parks & Gardens Operations,14046762,3455,Greenway Partnership Limited T/A GPL Building Services,R2007-OPS001,R & M of Plant Contracts,12/08/2016,"3,458.27 ",
http://statistics.data.gov.uk/id/local-authority-district/23UB,Cheltenham Borough Council,Recreation Centre Repairs & Maintenance,14046914,3457,Greenway Partnership Limited T/A GPL Building Services,R2004-REC111,R & M of Build Programmed,19/08/2016,"3,477.00 ",
http://statistics.data.gov.uk/id/local-authority-district/23UB,Cheltenham Borough Council,Recreation Centre Repairs & Maintenance,14046914,3457,Greenway Partnership Limited T/A GPL Building Services,R2004-REC111,R & M of Build Programmed,19/08/2016,"1,186.64 ",
http://statistics.data.gov.uk/id/local-authority-district/23UB,Cheltenham Borough Council,Abandoned Vehicles,14046697,656,Harry Buckland,R4401-STC011,Services - Fees and Charges,05/08/2016,640.00 ,
http://statistics.data.gov.uk/id/local-authority-district/23UB,Cheltenham Borough Council,Abandoned Vehicles,14046697,656,Harry Buckland,R4401-STC011,Services - Fees and Charges,05/08/2016,820.00 ,
http://statistics.data.gov.uk/id/local-authority-district/23UB,Cheltenham Borough Council,Abandoned Vehicles,14046697,656,Harry Buckland,R4401-STC011,Services - Fees and Charges,05/08/2016,-860.00 ,
http://statistics.data.gov.uk/id/local-authority-district/23UB,Cheltenham Borough Council,Abandoned Vehicles,14046697,656,Harry Buckland,R4401-STC011,Services - Fees and Charges,05/08/2016,-820.00 ,
http://statistics.data.gov.uk/id/local-authority-district/23UB,Cheltenham Borough Council,Abandoned Vehicles,14046697,656,Harry Buckland,R4401-STC011,Services - Fees and Charges,05/08/2016,-656.00 ,
http://statistics.data.gov.uk/id/local-authority-district/23UB,Cheltenham Borough Council,Abandoned Vehicles,14046697,656,Harry Buckland,R4401-STC011,Services - Fees and Charges,05/08/2016,560.00 ,
http://statistics.data.gov.uk/id/local-authority-district/23UB,Cheltenham Borough Council,Abandoned Vehicles,14046697,656,Harry Buckland,R4401-STC011,Services - Fees and Charges,05/08/2016,-560.00 ,
http://statistics.data.gov.uk/id/local-authority-district/23UB,Cheltenham Borough Council,Abandoned Vehicles,14046697,656,Harry Buckland,R4401-STC011,Services - Fees and Charges,05/08/2016,656.00 ,
http://statistics.data.gov.uk/id/local-authority-district/23UB,Cheltenham Borough Council,Abandoned Vehicles,14046697,656,Harry Buckland,R4401-STC011,Services - Fees and Charges,05/08/2016,-640.00 ,
http://statistics.data.gov.uk/id/local-authority-district/23UB,Cheltenham Borough Council,Abandoned Vehicles,14046697,656,Harry Buckland,R4401-STC011,Services - Fees and Charges,05/08/2016,860.00 ,
http://statistics.data.gov.uk/id/local-authority-district/23UB,Cheltenham Borough Council,Abandoned Vehicles,14047146,716,Harry Buckland,R4401-STC011,Services - Fees and Charges,26/08/2016,700.00 ,
http://statistics.data.gov.uk/id/local-authority-district/23UB,Cheltenham Borough Council,Art Gallery & Museum Repairs & Maintenance,14047090,16098,Hellion Environmental Limited,R2080-CUL117,Mechanical Services,26/08/2016,520.84 ,
http://statistics.data.gov.uk/id/local-authority-district/23UB,Cheltenham Borough Council,Recreation Centre Repairs & Maintenance,14047104,16112,Hellion Environmental Limited,R2080-REC111,Mechanical Services,26/08/2016,545.63 ,
http://statistics.data.gov.uk/id/local-authority-district/23UB,Cheltenham Borough Council,Art Gallery & Museum Repairs & Maintenance,14047087,16136,Hellion Environmental Limited,R2008-CUL117,R & M of Build - Reactive Repairs,26/08/2016,"1,950.00 ",
http://statistics.data.gov.uk/id/local-authority-district/23UB,Cheltenham Borough Council,Art Gallery & Museum Repairs & Maintenance,14047087,16136,Hellion Environmental Limited,R2008-CUL117,R & M of Build - Reactive Repairs,26/08/2016,678.31 ,
http://statistics.data.gov.uk/id/local-authority-district/23UB,Cheltenham Borough Council,General Fund Balance Sheet,14046848,CISDEDUCT0607-050816,HMRC (CBC - CIS),B6220-BAL100,CIS Deductions Control (reallocated),12/08/2016,"3,936.95 ",
http://statistics.data.gov.uk/id/local-authority-district/23UB,Cheltenham Borough Council,Repairs and Maintenance,14046734,150312AA4,Ian Williams Limited,R2060-HRA100,R & M of Build Cyclical Painting Communal Areas,12/08/2016,"40,500.03 ",
http://statistics.data.gov.uk/id/local-authority-district/23UB,Cheltenham Borough Council,Built Environment,14046075,153351,Ice Creates Limited,R4400-SUP040,Services - Professional Fees,12/08/2016,"1,450.00 ",
http://statistics.data.gov.uk/id/local-authority-district/23UB,Cheltenham Borough Council,Corporate Policy Making,14046785,20118,Industrial Medical & Safety Services (IMASS) Limited,R4401-COR003,Services - Fees and Charges,12/08/2016,500.00 ,
http://statistics.data.gov.uk/id/local-authority-district/23UB,Cheltenham Borough Council,Development costs - Swindon Road,14046690,005 IN022437,J Harper & Sons (Leominster) Limited,C1107-CAH050,Building Works,05/08/2016,"144,767.20 ",
http://statistics.data.gov.uk/id/local-authority-district/23UB,Cheltenham Borough Council,Development costs - Swindon Road,14046690,005 IN022437,J Harper & Sons (Leominster) Limited,C1107-CAH050,Building Works,05/08/2016,"-144,767.20 ",
http://statistics.data.gov.uk/id/local-authority-district/23UB,Cheltenham Borough Council,Development costs - Swindon Road,14046690,005 IN022437,J Harper & Sons (Leominster) Limited,C1107-CAH050,Building Works,05/08/2016,"140,536.46 ",
http://statistics.data.gov.uk/id/local-authority-district/23UB,Cheltenham Borough Council,Development costs - Garage Sites 2a,14046691,009 IN022457,J Harper & Sons (Leominster) Limited,C1107-CAH052,Building Works,05/08/2016,"-123,872.40 ",
http://statistics.data.gov.uk/id/local-authority-district/23UB,Cheltenham Borough Council,Development costs - Garage Sites 2a,14046691,009 IN022457,J Harper & Sons (Leominster) Limited,C1107-CAH052,Building Works,05/08/2016,"123,872.40 ",
http://statistics.data.gov.uk/id/local-authority-district/23UB,Cheltenham Borough Council,Development costs - Garage Sites 2a,14046691,009 IN022457,J Harper & Sons (Leominster) Limited,C1107-CAH052,Building Works,05/08/2016,"119,326.67 ",
http://statistics.data.gov.uk/id/local-authority-district/23UB,Cheltenham Borough Council,Sports & Open Spaces Operations,14046889,16/027,REDACTED,R2071-OPS002,Open Spaces and Grassed Areas,26/08/2016,"1,200.00 ",
http://statistics.data.gov.uk/id/local-authority-district/23UB,Cheltenham Borough Council,"Cemetery, Crematorium and Churchyards",14046858,5306,J Preece and Sons,R2076-CCM001,Grounds Maintenance - Non Contract,12/08/2016,600.00 ,
http://statistics.data.gov.uk/id/local-authority-district/23UB,Cheltenham Borough Council,Car Parks - Off Street R&M,14046675,EN002-0220780,Jones Lang Lasalle Limited,R4400-CPK101,Services - Professional Fees,05/08/2016,"5,000.12 ",
http://statistics.data.gov.uk/id/local-authority-district/23UB,Cheltenham Borough Council,Cheltenham Depot,14046547,INV-0514,JS Security Limited,R2705-ADB103,Security Systems,05/08/2016,651.00 ,
http://statistics.data.gov.uk/id/local-authority-district/23UB,Cheltenham Borough Council,Joint Core Strategy,14046818,360918 130116,Kings Chambers,R4400-PLP101,Services - Professional Fees,12/08/2016,"1,000.00 ",
http://statistics.data.gov.uk/id/local-authority-district/23UB,Cheltenham Borough Council,Development Control - Applications,14046862,4673,"Knight, Kavanagh & Page Ltd  (KKP Management Consultants)",R4400-DEV001,Services - Professional Fees,19/08/2016,"25,641.00 ",
http://statistics.data.gov.uk/id/local-authority-district/23UB,Cheltenham Borough Council,New Heating Installations,14046948,1183328,Liberty Gas Group,C1107-CAH009,Building Works,19/08/2016,"3,600.91 ",
http://statistics.data.gov.uk/id/local-authority-district/23UB,Cheltenham Borough Council,Repairs and Maintenance,14046951,1183329,Liberty Gas Group,R2016-HRA100,R & M of Build Void Repairs,19/08/2016,"1,113.82 ",
http://statistics.data.gov.uk/id/local-authority-district/23UB,Cheltenham Borough Council,Repairs and Maintenance,14046951,1183329,Liberty Gas Group,R2040-HRA100,R & M of Build Central Heating,19/08/2016,"36,335.64 ",
http://statistics.data.gov.uk/id/local-authority-district/23UB,Cheltenham Borough Council,Repairs and Maintenance,14046863,SIN00025816/A,Low Carbon Exchange (LCX Solar Limited),R2004-HRA100,R & M of Build Programmed,12/08/2016,"16,711.37 ",
http://statistics.data.gov.uk/id/local-authority-district/23UB,Cheltenham Borough Council,Sports & Open Spaces Operations,14046574,138717,Matta Products (UK) Limited,R4003-OPS002,Tools & Equipment - R & M,05/08/2016,"1,000.00 ",
http://statistics.data.gov.uk/id/local-authority-district/23UB,Cheltenham Borough Council,Sports & Open Spaces Operations,14046574,138717,Matta Products (UK) Limited,R4003-OPS002,Tools & Equipment - R & M,05/08/2016,"1,000.00 ",
http://statistics.data.gov.uk/id/local-authority-district/23UB,Cheltenham Borough Council,Sports & Open Spaces Operations,14046574,138717,Matta Products (UK) Limited,R4003-OPS002,Tools & Equipment - R & M,05/08/2016,"-1,000.00 ",
http://statistics.data.gov.uk/id/local-authority-district/23UB,Cheltenham Borough Council,Miscellaneous Works,14046640,6009,Mcdonnell Price Roofing Contractors Limited,C1107-CAH013,Building Works,05/08/2016,"3,109.00 ",
http://statistics.data.gov.uk/id/local-authority-district/23UB,Cheltenham Borough Council,Miscellaneous Works,14046640,6009,Mcdonnell Price Roofing Contractors Limited,C1107-CAH013,Building Works,05/08/2016,"-3,109.00 ",
http://statistics.data.gov.uk/id/local-authority-district/23UB,Cheltenham Borough Council,Miscellaneous Works,14046640,6009,Mcdonnell Price Roofing Contractors Limited,C1107-CAH013,Building Works,05/08/2016,"3,109.00 ",
http://statistics.data.gov.uk/id/local-authority-district/23UB,Cheltenham Borough Council,ICT,14046777,20460,Meridian Options Systems Support Limited,R4534-SUP005,IT - Maint Agreements,12/08/2016,"3,114.64 ",
http://statistics.data.gov.uk/id/local-authority-district/23UB,Cheltenham Borough Council,Repairs and Maintenance,14046933,26943,Morgan Lambert Limited,R2040-HRA100,R & M of Build Central Heating,19/08/2016,528.00 ,
http://statistics.data.gov.uk/id/local-authority-district/23UB,Cheltenham Borough Council,"Cemetery, Crematorium and Churchyards",14047055,160816,Mr Clarke-Duguid (General Builder),R2076-CCM001,Grounds Maintenance - Non Contract,16/08/2016,"1,740.00 ",
http://statistics.data.gov.uk/id/local-authority-district/23UB,Cheltenham Borough Council,Joint Core Strategy,14046546,CTG JCS 010,REDACTED,R4401-PLP101,Services - Fees and Charges,05/08/2016,"5,416.06 ",
http://statistics.data.gov.uk/id/local-authority-district/23UB,Cheltenham Borough Council,"Cemetery, Crematorium and Churchyards",14046804,310716,REDACTED,R4401-CCM001,Services - Fees and Charges,12/08/2016,806.62 ,
http://statistics.data.gov.uk/id/local-authority-district/23UB,Cheltenham Borough Council,Parks & Gardens Operations,14046559,16/04,Mumkin Operational Services,R4003-OPS001,Tools & Equipment - R & M,05/08/2016,"1,744.00 ",
http://statistics.data.gov.uk/id/local-authority-district/23UB,Cheltenham Borough Council,Window & Door Renewals,14046418,NWC1602-213,Nationwide Windows Limited,C1107-CAH017,Building Works,05/08/2016,"234,282.53 ",
http://statistics.data.gov.uk/id/local-authority-district/23UB,Cheltenham Borough Council,Supervision and Management,14047133,290,Nature First Limited,R5013-HRA110,Minor Neighbourhood Works - St Paul's Areas,26/08/2016,585.00 ,
http://statistics.data.gov.uk/id/local-authority-district/23UB,Cheltenham Borough Council,Miscellaneous Works,14046573,9756,NKS Contracts (Central) Limited,C1107-CAH013,Building Works,05/08/2016,"8,045.20 ",
http://statistics.data.gov.uk/id/local-authority-district/23UB,Cheltenham Borough Council,Miscellaneous Works,14046573,9756,NKS Contracts (Central) Limited,C1107-CAH013,Building Works,05/08/2016,"7,141.20 ",
http://statistics.data.gov.uk/id/local-authority-district/23UB,Cheltenham Borough Council,Miscellaneous Works,14046573,9756,NKS Contracts (Central) Limited,C1107-CAH013,Building Works,05/08/2016,"-8,045.20 ",
http://statistics.data.gov.uk/id/local-authority-district/23UB,Cheltenham Borough Council,Sheltered Housing,14046641,9759,NKS Contracts (Central) Limited,C1107-CAH014,Building Works,05/08/2016,"23,153.01 ",
http://statistics.data.gov.uk/id/local-authority-district/23UB,Cheltenham Borough Council,Sheltered Housing,14046641,9759,NKS Contracts (Central) Limited,C1107-CAH014,Building Works,05/08/2016,"23,153.01 ",
http://statistics.data.gov.uk/id/local-authority-district/23UB,Cheltenham Borough Council,Sheltered Housing,14046641,9759,NKS Contracts (Central) Limited,C1107-CAH014,Building Works,05/08/2016,"-23,153.01 ",
http://statistics.data.gov.uk/id/local-authority-district/23UB,Cheltenham Borough Council,Recreation Centre Repairs & Maintenance,14046875,C6905/16/105,O'Brien & Price Cheltenham Limited,R2004-REC111,R & M of Build Programmed,19/08/2016,750.00 ,
http://statistics.data.gov.uk/id/local-authority-district/23UB,Cheltenham Borough Council,"Cemetery, Crematorium and Churchyards",14046866,B8832,Odlings Limited T/A The Columbaria Company,R4011-CCM001,Goods For Resale,19/08/2016,"1,290.00 ",
http://statistics.data.gov.uk/id/local-authority-district/23UB,Cheltenham Borough Council,CCTV,14046456,626942,OpenView Security Solutions Limited,R4003-CCT001,Tools & Equipment - R & M,19/08/2016,"1,419.17 ",
http://statistics.data.gov.uk/id/local-authority-district/23UB,Cheltenham Borough Council,Joint Core Strategy,14046717,411835,Ove Arup & Partners Limited,R4401-PLP101,Services - Fees and Charges,05/08/2016,"2,520.00 ",
http://statistics.data.gov.uk/id/local-authority-district/23UB,Cheltenham Borough Council,Development costs - Swindon Road,14046808,16-5832 AC,PMP CONSULTANTS LIMITED,C1107-CAH050,Building Works,12/08/2016,650.00 ,
http://statistics.data.gov.uk/id/local-authority-district/23UB,Cheltenham Borough Council,Income and Expenditure on Investment Properties and Changes in Their Fair Value,14046880,OP/I724569,Protec Fire Detection plc,R2008-FIE040,R & M of Build - Reactive Repairs,19/08/2016,711.00 ,
http://statistics.data.gov.uk/id/local-authority-district/23UB,Cheltenham Borough Council,Printing Services,14047058,100608986,Ricoh UK Limited,R4002-SUP022,Tools & Equipment - Lease/Rental,26/08/2016,"4,728.56 ",
http://statistics.data.gov.uk/id/local-authority-district/23UB,Cheltenham Borough Council,Council Tax Collection,14046447,9052551270,Royal Mail,R4521-LTC001,Postages - franking machine,05/08/2016,693.54 ,
http://statistics.data.gov.uk/id/local-authority-district/23UB,Cheltenham Borough Council,Police & Crime Commissioner Elections,14046681,9052604815,Royal Mail,R4520-ELE008,Postages - stamps,05/08/2016,888.60 ,
http://statistics.data.gov.uk/id/local-authority-district/23UB,Cheltenham Borough Council,Referendum,14046681,9052604815,Royal Mail,R4520-ELE011,Postages - stamps,05/08/2016,786.84 ,
http://statistics.data.gov.uk/id/local-authority-district/23UB,Cheltenham Borough Council,District Elections,14046681,9052604815,Royal Mail,R4520-ELE002,Postages - stamps,05/08/2016,"1,530.50 ",
http://statistics.data.gov.uk/id/local-authority-district/23UB,Cheltenham Borough Council,Housing Benefit Administration,14046878,9052681757,Royal Mail,R4521-HBA001,Postages - franking machine,19/08/2016,588.34 ,
http://statistics.data.gov.uk/id/local-authority-district/23UB,Cheltenham Borough Council,Council Tax Collection,14046878,9052681757,Royal Mail,R4521-LTC001,Postages - franking machine,19/08/2016,"1,314.59 ",
http://statistics.data.gov.uk/id/local-authority-district/23UB,Cheltenham Borough Council,Council Tax Collection,14046976,9052730221,Royal Mail,R4521-LTC001,Postages - franking machine,19/08/2016,535.69 ,
http://statistics.data.gov.uk/id/local-authority-district/23UB,Cheltenham Borough Council,Sandford Lido car park,14046841,310716,Sandford Parks Lido (Trading) Limited,R5003-CPK103,TPP - Agency Fees,12/08/2016,"35,658.88 ",
http://statistics.data.gov.uk/id/local-authority-district/23UB,Cheltenham Borough Council,Sandford Lido car park,14046841,310716,Sandford Parks Lido (Trading) Limited,R5003-CPK103,TPP - Agency Fees,12/08/2016,"-1,683.33 ",
http://statistics.data.gov.uk/id/local-authority-district/23UB,Cheltenham Borough Council,Repairs and Maintenance,14046716,839,SAS EPC,R2018-HRA100,R & M of Build Voids Energy Performance Certificates,12/08/2016,"1,305.00 ",
http://statistics.data.gov.uk/id/local-authority-district/23UB,Cheltenham Borough Council,Car Park Income Collection,14046958,565117,Security Plus+ Limited,R4435-CPK002,Cash Collection Contract,19/08/2016,891.44 ,
http://statistics.data.gov.uk/id/local-authority-district/23UB,Cheltenham Borough Council,"Paths, Fences & Walls",14046770,14896,Snape Construction Limited,C1107-CAH021,Building Works,12/08/2016,"6,850.90 ",
http://statistics.data.gov.uk/id/local-authority-district/23UB,Cheltenham Borough Council,"Paths, Fences & Walls",14046770,14896,Snape Construction Limited,C1107-CAH021,Building Works,12/08/2016,"6,850.90 ",
http://statistics.data.gov.uk/id/local-authority-district/23UB,Cheltenham Borough Council,"Paths, Fences & Walls",14046770,14896,Snape Construction Limited,C1107-CAH021,Building Works,12/08/2016,"-6,850.90 ",
http://statistics.data.gov.uk/id/local-authority-district/23UB,Cheltenham Borough Council,"Paths, Fences & Walls",14046993,15391,Snape Construction Limited,C1107-CAH021,Building Works,26/08/2016,"21,775.51 ",
http://statistics.data.gov.uk/id/local-authority-district/23UB,Cheltenham Borough Council,"Paths, Fences & Walls",14046993,15391,Snape Construction Limited,C1107-CAH021,Building Works,26/08/2016,"-21,775.51 ",
http://statistics.data.gov.uk/id/local-authority-district/23UB,Cheltenham Borough Council,"Paths, Fences & Walls",14046993,15391,Snape Construction Limited,C1107-CAH021,Building Works,26/08/2016,"21,775.51 ",
http://statistics.data.gov.uk/id/local-authority-district/23UB,Cheltenham Borough Council,Recycling Collection Schemes,14046792,117624,South Wales Wood Recycling Ltd,R5005-RYC006,TPP - Minor Contract Fees,12/08/2016,"1,731.40 ",
http://statistics.data.gov.uk/id/local-authority-district/23UB,Cheltenham Borough Council,Bring Sites,14046787,117699,South Wales Wood Recycling Ltd,R5005-RYC005,TPP - Minor Contract Fees,12/08/2016,"1,653.30 ",
http://statistics.data.gov.uk/id/local-authority-district/23UB,Cheltenham Borough Council,Recycling Collection Schemes,14046811,26766,Straight Plc,R4000-RYC006,Equipment Purchase,12/08/2016,"11,088.00 ",
http://statistics.data.gov.uk/id/local-authority-district/23UB,Cheltenham Borough Council,Recycling Collection Schemes,14046931,26822,Straight Plc,R4000-RYC006,Equipment Purchase,19/08/2016,"5,796.00 ",
http://statistics.data.gov.uk/id/local-authority-district/23UB,Cheltenham Borough Council,Parks & Gardens Operations,14046737,3371,Streetmaster (South Wales) Limited,R2500-OPS001,Fixtures and Fittings - Purchases,05/08/2016,963.00 ,
http://statistics.data.gov.uk/id/local-authority-district/23UB,Cheltenham Borough Council,Income and Expenditure on Investment Properties and Changes in Their Fair Value,14046578,6029,System Six Design & Build,R2004-FIE040,R & M of Build Programmed,05/08/2016,"1,200.00 ",
http://statistics.data.gov.uk/id/local-authority-district/23UB,Cheltenham Borough Council,Adaptations for the Disabled (CBC),14046840,58 milton road,T P G Disable Aids Limited (TPG),C1107-CAH028,Building Works,12/08/2016,"3,695.00 ",
http://statistics.data.gov.uk/id/local-authority-district/23UB,Cheltenham Borough Council,Fire Protection,14046735,184794,Tewkesbury Borough Council,C1107-CAH015,Building Works,05/08/2016,536.00 ,
http://statistics.data.gov.uk/id/local-authority-district/23UB,Cheltenham Borough Council,Income and Expenditure on Investment Properties and Changes in Their Fair Value,14046975,debt104957,Tewkesbury Borough Council,R4400-FIE040,Services - Professional Fees,26/08/2016,"3,891.00 ",
http://statistics.data.gov.uk/id/local-authority-district/23UB,Cheltenham Borough Council,Community Welfare Grants,14046720,70023243,The Cheltenham Trust,R6280-GBD001,Grants,05/08/2016,"2,300.00 ",
http://statistics.data.gov.uk/id/local-authority-district/23UB,Cheltenham Borough Council,Community Alarms,14046686,64183,The Key Safe Company,R4000-SPP002,Equipment Purchase,05/08/2016,565.44 ,
http://statistics.data.gov.uk/id/local-authority-district/23UB,Cheltenham Borough Council,Community Alarms,14047144,66311,The Key Safe Company,R4000-SPP002,Equipment Purchase,26/08/2016,565.44 ,
http://statistics.data.gov.uk/id/local-authority-district/23UB,Cheltenham Borough Council,General Fund Balance Sheet,14046758,8.50028E+11,The Midcounties Co-operative,B6170-BAL100,Short Term Revenue Creditors (incl RIA) - Other entities and individuals,12/08/2016,"2,561.00 ",
http://statistics.data.gov.uk/id/local-authority-district/23UB,Cheltenham Borough Council,Joint Core Strategy,14046999,1800001593,The Planning Inspectorate,R4400-PLP101,Services - Professional Fees,19/08/2016,"120,998.45 ",
http://statistics.data.gov.uk/id/local-authority-district/23UB,Cheltenham Borough Council,Community Welfare Grants,14046884,3118,The Rock,R6280-GBD001,Grants,19/08/2016,"2,000.00 ",
http://statistics.data.gov.uk/id/local-authority-district/23UB,Cheltenham Borough Council,Community Welfare Grants,14046883,3119,The Rock,R6280-GBD001,Grants,19/08/2016,876.76 ,
http://statistics.data.gov.uk/id/local-authority-district/23UB,Cheltenham Borough Council,Disabled Facility Grants,14047008,REDACTED,The Surveying Practice - Client Account,C5000-CAP221,Grants,19/08/2016,"7,063.79 ",
http://statistics.data.gov.uk/id/local-authority-district/23UB,Cheltenham Borough Council,Pedestrian Wayfinding,14044404,INV01161,Trueform Engineering Limited,C4001-CAP155,Furniture,05/08/2016,"1,698.00 ",
http://statistics.data.gov.uk/id/local-authority-district/23UB,Cheltenham Borough Council,Car Parks - Off Street Operations,14046941,60008637,Ubico Limited,R2700-CPK001,Contract Cleaning,19/08/2016,"8,080.00 ",
http://statistics.data.gov.uk/id/local-authority-district/23UB,Cheltenham Borough Council,Cheltenham Depot,14046047,60008646,Ubico Limited,R2700-ADB103,Contract Cleaning,12/08/2016,"6,648.64 ",
http://statistics.data.gov.uk/id/local-authority-district/23UB,Cheltenham Borough Council,Cheltenham Depot,14046046,60008655,Ubico Limited,R2083-ADB103,R&M of Build - Routine,12/08/2016,"3,006.32 ",
http://statistics.data.gov.uk/id/local-authority-district/23UB,Cheltenham Borough Council,Car Parks - Off Street Operations,14046906,CHL00253,Verrus (UK) Limited (Pay By Phone),R4401-CPK001,Services - Fees and Charges,19/08/2016,"2,825.91 ",
http://statistics.data.gov.uk/id/local-authority-district/23UB,Cheltenham Borough Council,ICT,14046701,912686-079,Virgin Media Business,R4548-SUP005,IT - Cabling and Network,05/08/2016,"7,500.00 ",
http://statistics.data.gov.uk/id/local-authority-district/23UB,Cheltenham Borough Council,Bulky Household Waste,14046705,16/16,Vision 21,R4401-WST004,Services - Fees and Charges,12/08/2016,"3,731.25 ",
http://statistics.data.gov.uk/id/local-authority-district/23UB,Cheltenham Borough Council,Recreation Centre Repairs & Maintenance,14046658,1300088,West Mercia Energy (WME),R2101-REC111,Gas,05/08/2016,"7,650.68 ",
http://statistics.data.gov.uk/id/local-authority-district/23UB,Cheltenham Borough Council,Cheltenham Depot,14046664,1300094,West Mercia Energy (WME),R2101-ADB103,Gas,05/08/2016,"1,083.58 ",
http://statistics.data.gov.uk/id/local-authority-district/23UB,Cheltenham Borough Council,Arle Road Nursery Repairs Maintenance,14046662,1300099,West Mercia Energy (WME),R2101-OPS111,Gas,05/08/2016,"1,084.93 ",
http://statistics.data.gov.uk/id/local-authority-district/23UB,Cheltenham Borough Council,Cemetery & Crematorium Repairs & Maintenance,14046668,1300101,West Mercia Energy (WME),R2101-CCM111,Gas,05/08/2016,"2,437.00 ",
http://statistics.data.gov.uk/id/local-authority-district/23UB,Cheltenham Borough Council,Cheltenham Municipal Offices,14046660,1300105,West Mercia Energy (WME),R2101-ADB101,Gas,05/08/2016,674.33 ,
http://statistics.data.gov.uk/id/local-authority-district/23UB,Cheltenham Borough Council,Town Hall Repairs & Maintenance,14046671,1300108,West Mercia Energy (WME),R2101-CUL112,Gas,05/08/2016,598.79 ,
http://statistics.data.gov.uk/id/local-authority-district/23UB,Cheltenham Borough Council,Art Gallery & Museum Repairs & Maintenance,14046656,1300110,West Mercia Energy (WME),R2101-CUL117,Gas,05/08/2016,907.88 ,
http://statistics.data.gov.uk/id/local-authority-district/23UB,Cheltenham Borough Council,Cemetery & Crematorium Repairs & Maintenance,14047026,1306383,West Mercia Energy (WME),R2101-CCM111,Gas,26/08/2016,"2,270.85 ",
http://statistics.data.gov.uk/id/local-authority-district/23UB,Cheltenham Borough Council,Recreation Centre Repairs & Maintenance,14047017,1306384,West Mercia Energy (WME),R2101-REC111,Gas,26/08/2016,"7,381.37 ",
http://statistics.data.gov.uk/id/local-authority-district/23UB,Cheltenham Borough Council,Cheltenham Municipal Offices,14047019,1306385,West Mercia Energy (WME),R2101-ADB101,Gas,26/08/2016,565.77 ,
http://statistics.data.gov.uk/id/local-authority-district/23UB,Cheltenham Borough Council,Cheltenham Depot,14047024,1306394,West Mercia Energy (WME),R2101-ADB103,Gas,26/08/2016,711.18 ,
http://statistics.data.gov.uk/id/local-authority-district/23UB,Cheltenham Borough Council,Art Gallery & Museum Repairs & Maintenance,14047015,1306398,West Mercia Energy (WME),R2101-CUL117,Gas,26/08/2016,869.65 ,
http://statistics.data.gov.uk/id/local-authority-district/23UB,Cheltenham Borough Council,Arle Road Nursery Repairs Maintenance,14047022,1306427,West Mercia Energy (WME),R2101-OPS111,Gas,26/08/2016,"1,351.16 ",
http://statistics.data.gov.uk/id/local-authority-district/23UB,Cheltenham Borough Council,Prince of Wales Stadium Repairs & Maintenance,14047330,1307653,West Mercia Energy (WME),R2100-REC112,Electricity,12/08/2016,"1,436.79 ",
http://statistics.data.gov.uk/id/local-authority-district/23UB,Cheltenham Borough Council,Art Gallery & Museum Repairs & Maintenance,14047378,1308305,West Mercia Energy (WME),R2100-CUL117,Electricity,16/08/2016,"3,069.64 ",
http://statistics.data.gov.uk/id/local-authority-district/23UB,Cheltenham Borough Council,Art Gallery & Museum Repairs & Maintenance,14047379,1308306,West Mercia Energy (WME),R2100-CUL117,Electricity,16/08/2016,"2,731.07 ",
http://statistics.data.gov.uk/id/local-authority-district/23UB,Cheltenham Borough Council,Recreation Centre Repairs & Maintenance,14047380,1308307,West Mercia Energy (WME),R2100-REC111,Electricity,16/08/2016,"3,710.62 ",
http://statistics.data.gov.uk/id/local-authority-district/23UB,Cheltenham Borough Council,Recreation Centre Repairs & Maintenance,14047381,1308308,West Mercia Energy (WME),R2100-REC111,Electricity,16/08/2016,"3,692.88 ",
http://statistics.data.gov.uk/id/local-authority-district/23UB,Cheltenham Borough Council,Cheltenham Municipal Offices,14047382,1308309,West Mercia Energy (WME),R2100-ADB101,Electricity,16/08/2016,"3,312.03 ",
http://statistics.data.gov.uk/id/local-authority-district/23UB,Cheltenham Borough Council,Cheltenham Municipal Offices,14047383,1308310,West Mercia Energy (WME),R2100-ADB101,Electricity,16/08/2016,"3,256.74 ",
http://statistics.data.gov.uk/id/local-authority-district/23UB,Cheltenham Borough Council,Cheltenham Depot,14047374,1308311,West Mercia Energy (WME),R2100-ADB103,Electricity,16/08/2016,"2,343.45 ",
http://statistics.data.gov.uk/id/local-authority-district/23UB,Cheltenham Borough Council,Cheltenham Depot,14047372,1308312,West Mercia Energy (WME),R2100-ADB103,Electricity,16/08/2016,"2,075.09 ",
http://statistics.data.gov.uk/id/local-authority-district/23UB,Cheltenham Borough Council,Art Gallery & Museum Repairs & Maintenance,14047377,1308313,West Mercia Energy (WME),R2100-CUL117,Electricity,16/08/2016,"1,197.80 ",
http://statistics.data.gov.uk/id/local-authority-district/23UB,Cheltenham Borough Council,Town Hall Repairs & Maintenance,14047370,1308314,West Mercia Energy (WME),R2100-CUL112,Electricity,16/08/2016,"2,923.74 ",
http://statistics.data.gov.uk/id/local-authority-district/23UB,Cheltenham Borough Council,Art Gallery & Museum Repairs & Maintenance,14047371,1308315,West Mercia Energy (WME),R2100-CUL117,Electricity,16/08/2016,"1,003.79 ",
http://statistics.data.gov.uk/id/local-authority-district/23UB,Cheltenham Borough Council,Art Gallery & Museum Repairs & Maintenance,14047376,1308316,West Mercia Energy (WME),R2100-CUL117,Electricity,16/08/2016,921.52 ,
http://statistics.data.gov.uk/id/local-authority-district/23UB,Cheltenham Borough Council,Pittville Pump Room Repairs & Maintenance,14047375,1308317,West Mercia Energy (WME),R2100-CUL113,Electricity,16/08/2016,732.83 ,
http://statistics.data.gov.uk/id/local-authority-district/23UB,Cheltenham Borough Council,Pittville Pump Room Repairs & Maintenance,14047373,1308318,West Mercia Energy (WME),R2100-CUL113,Electricity,16/08/2016,786.06 ,
http://statistics.data.gov.uk/id/local-authority-district/23UB,Cheltenham Borough Council,Built Environment,14046877,33135276,West Oxfordshire District Council,R4531-SUP040,IT - Purchase of Software,19/08/2016,"6,300.00 ",
http://statistics.data.gov.uk/id/local-authority-district/23UB,Cheltenham Borough Council,Cakebridge Place development,14047053,9214/C,WNCT Enterprises Limited,C1107-CAH034,Building Works,26/08/2016,545.00 ,
http://statistics.data.gov.uk/id/local-authority-district/23UB,Cheltenham Borough Council,Income and Expenditure on Investment Properties and Changes in Their Fair Value,14045309,TER-05H090-0191 040416,Zurich Insurance plc (Zurich Municipal),R4960-FIE040,Insurances,05/08/2016,654.42 ,
http://statistics.data.gov.uk/id/local-authority-district/23UB,Cheltenham Borough Council,Development Control - Applications,14046458,REFUND FOR PLANNING FEE 14/00566/FUL,BUSHURST PROPERTIES LTD,R9303-DEV001,Fees - Planning Application,05/08/2016,"1,540.00 ",
http://statistics.data.gov.uk/id/local-authority-district/23UB,Cheltenham Borough Council,Community Welfare Grants,14046843,posacts - gmas (02.08.16),GLOUCESTERSHIRE MENTORING & SUPPORT,R6280-GBD001,Grants,12/08/2016,"5,000.00 ",
http://statistics.data.gov.uk/id/local-authority-district/23UB,Cheltenham Borough Council,Rent Control,14046853,REDACTED,REDACTED,R9910-HRA900,Refund of Overpiad Rent,12/08/2016,585.54 ,
http://statistics.data.gov.uk/id/local-authority-district/23UB,Cheltenham Borough Council,Built Environment,14047001,RELOCATION EXPENSES,REDACTED,R1500-SUP040,Relocation Expenses,19/08/2016,"8,000.00 ",
http://statistics.data.gov.uk/id/local-authority-district/23UB,Cheltenham Borough Council,Rent Control,14046855,REDACTED,REDACTED,R9910-HRA900,Refund of Overpiad Rent,12/08/2016,661.22 ,
http://statistics.data.gov.uk/id/local-authority-district/23UB,Cheltenham Borough Council,Twinning Expenses,14046646,REDACTED,REDACTED,R4401-DRM011,Services - Fees and Charges,05/08/2016,560.00 ,
http://statistics.data.gov.uk/id/local-authority-district/23UB,Cheltenham Borough Council,Twinning Expenses,14046653,REDACTED,REDACTED,R4401-DRM011,Services - Fees and Charges,05/08/2016,560.00 ,
http://statistics.data.gov.uk/id/local-authority-district/23UB,Cheltenham Borough Council,General Fund Balance Sheet,14046962,ref 7002026x,SKATERS CLUB,B6170-BAL100,Short Term Revenue Creditors (incl RIA) - Other entities and individuals,19/08/2016,"1,240.00 ",
http://statistics.data.gov.uk/id/local-authority-district/23UB,Cheltenham Borough Council,Car Parks - Off Street Operations,14046816,REFUND OF PARKING PERMIT (THB GROUP),THB GROUP,R9353-CPK001,Parking Permits,12/08/2016,"1,440.00 ",
http://statistics.data.gov.uk/id/local-authority-district/23UB,Cheltenham Borough Council,Homelessness,14046712,NOTTINGHAM,REDACTED,R6280-HOM001,Grants,05/08/2016,550.00 ,
Bank Transactions Data,,,,,,,,,
http://statistics.data.gov.uk/id/local-authority-district/23UB,Cheltenham Borough Council,Cheltenham Depot,10020075,Bank Transactions,8302579 TBC Central Depot Swindon Rd NNDR refund,R2300-ADB103,Business Rates,42599,-13046.25,
http://statistics.data.gov.uk/id/local-authority-district/23UB,Cheltenham Borough Council,Land Charges,10019911,Bank Transactions,Bevab Brittan costs for REDACTED dispute,R4426-BUC004,Legal Expenses,42585,27324.5,
http://statistics.data.gov.uk/id/local-authority-district/23UB,Cheltenham Borough Council,Treasury Management,10020003,Bank Transactions,CARDNET SVCCHG,R4428-COR006,Services - credit card charges,42594,4473.98,
http://statistics.data.gov.uk/id/local-authority-district/23UB,Cheltenham Borough Council,Car Parks - Off Street Operations,10020079,Bank Transactions,SEVERN TRENT WATER - CAR PARK  NORTHFIELD TERRACE,R2402-CPK001,Sewerage and Environmental Services,42612,713.82,
http://statistics.data.gov.uk/id/local-authority-district/23UB,Cheltenham Borough Council,Car Parks - Off Street Operations,10020079,Bank Transactions,SEVERN TRENT WATER - MULTI STOREY CAR PARK,R2402-CPK001,Sewerage and Environmental Services,42612,1061.85,
http://statistics.data.gov.uk/id/local-authority-district/23UB,Cheltenham Borough Council,Car Parks - Off Street Operations,10020024,Bank Transactions,WORLDPAY  S/LINE J3094437,R4428-CPK001,Services - credit card charges,42601,2698.19,
http://statistics.data.gov.uk/id/local-authority-district/23UB,Cheltenham Borough Council,Town Hall Repairs & Maintenance,10020079,Bank Transactions,SEVERN TRENT WATER - TOWN HALL,R2401-CUL112,Water Services - Metered,42612,1959.78,
http://statistics.data.gov.uk/id/local-authority-district/23UB,Cheltenham Borough Council,Town Hall Repairs & Maintenance,10020079,Bank Transactions,SEVERN TRENT WATER - TOWN HALL,R2402-CUL112,Sewerage and Environmental Services,42612,3084.3,
http://statistics.data.gov.uk/id/local-authority-district/23UB,Cheltenham Borough Council,Income and Expenditure on Investment Properties and Changes in Their Fair Value,10020075,Bank Transactions,8296906 York Place NNDR Refund,R2300-FIE040,Business Rates,42599,-3926.4,
http://statistics.data.gov.uk/id/local-authority-district/23UB,Cheltenham Borough Council,Supervision and Management,10020004,Bank Transactions,SOUTHERN ELECTRIC  406098431,R2100-HRA110,Electricity,42590,14333.02,
http://statistics.data.gov.uk/id/local-authority-district/23UB,Cheltenham Borough Council,Supervision and Management,10020079,Bank Transactions,WME - COOPERS COURT 31/05/2016 - 30/06/2016,R2101-HRA110,Gas,42612,523.12,
http://statistics.data.gov.uk/id/local-authority-district/23UB,Cheltenham Borough Council,Supervision and Management,10019962,Bank Transactions,GLOUCESTERSHIRE CC 2001471859,R4420-HRA110,Legal Expenses And Court Costs,42593,-7201.31,
http://statistics.data.gov.uk/id/local-authority-district/23UB,Cheltenham Borough Council,Supervision and Management,10020118,Bank Transactions,VODAFONE DD  80887215,R4507-HRA110,Comms - Mobile Telephones,42590,2978.3,
http://statistics.data.gov.uk/id/local-authority-district/23UB,Cheltenham Borough Council,Allotments,10020079,Bank Transactions,SEVERN TRENT WATER - HAYDEN ROAD ALLOTMENTS,R2401-OPS004,Water Services - Metered,42612,561.22,
http://statistics.data.gov.uk/id/local-authority-district/23UB,Cheltenham Borough Council,Arle Road Nursery Operations,10020091,Bank Transactions,TOTAL GAS & POWER REFUND,R2101-OPS101,Gas,42613,-38944.62,
http://statistics.data.gov.uk/id/local-authority-district/23UB,Cheltenham Borough Council,Recreation Centre Operations,10020050,Bank Transactions,SOUTHERN ELECTRIC DD - PRINCE OF WALES STADIUM,R2100-REC101,Electricity,42555,939.56,
http://statistics.data.gov.uk/id/local-authority-district/23UB,Cheltenham Borough Council,Recreation Centre Operations,10020079,Bank Transactions,SEVERN TRENT WATER - PRINCE OF WALES STADIUM,R2401-REC101,Water Services - Metered,42612,2011.91,
http://statistics.data.gov.uk/id/local-authority-district/23UB,Cheltenham Borough Council,Recreation Centre Operations,10020079,Bank Transactions,SEVERN TRENT WATER - PRINCE OF WALES STADIUM,R2402-REC101,Sewerage and Environmental Services,42612,1868.71,
http://statistics.data.gov.uk/id/local-authority-district/23UB,Cheltenham Borough Council,Recreation Centre Repairs & Maintenance,10020081,Bank Transactions,SEVERN TRENT WATER - RECREATION CENTRE,R2401-REC111,Water Services - Metered,42607,2708.91,
http://statistics.data.gov.uk/id/local-authority-district/23UB,Cheltenham Borough Council,Telephones,10020002,Bank Transactions,VIRGIN MEDIA  506761601005,R4436-SUP006,CCTV Line Rental,42583,1873.51,
http://statistics.data.gov.uk/id/local-authority-district/23UB,Cheltenham Borough Council,Telephones,10020002,Bank Transactions,VIRGIN MEDIA  506761601005,R4515-SUP006,Comms - Telephone Call Charges,42583,1389.04,
http://statistics.data.gov.uk/id/local-authority-district/23UB,Cheltenham Borough Council,Telephones,10020002,Bank Transactions,VIRGIN MEDIA  510828101501,R4515-SUP006,Comms - Telephone Call Charges,42583,694.5,
http://statistics.data.gov.uk/id/local-authority-district/23UB,Cheltenham Borough Council,Built Environment,10020118,Bank Transactions,VODAFONE DD  80887215,R4507-SUP040,Comms - Mobile Telephones,42590,558.47,
Purchase Card Data,,,,,,,,,
http://statistics.data.gov.uk/id/local-authority-district/23UB,Cheltenham Borough Council,"Cemetery, Crematorium and Churchyards",10020095,Procurement Cards,BUS CHG CARD - REDACTED MAY 16 - TOP FURNITURE LTD,R4009-CCM001,Materials - Cleaning Materials,42613,732.55,
http://statistics.data.gov.uk/id/local-authority-district/23UB,Cheltenham Borough Council,Twinning Expenses,10020098,Procurement Cards,BUS CHG CARD - JULY 16 - REDACTED -  ACC VOYAGES,R4401-DRM011,Services - Fees and Charges,42613,831.82,
http://statistics.data.gov.uk/id/local-authority-district/23UB,Cheltenham Borough Council,Twinning Expenses,10020098,Procurement Cards,BUS CHG CARD - JULY 16 - REDACTED-  FETE DU LAC,R4401-DRM011,Services - Fees and Charges,42613,953.37,
http://statistics.data.gov.uk/id/local-authority-district/23UB,Cheltenham Borough Council,Twinning Expenses,10020098,Procurement Cards,BUS CHG CARD - JULY 16 - REDACTED- CHELTENHAM TOWNHOUSE,R4401-DRM011,Services - Fees and Charges,42613,1925,
http://statistics.data.gov.uk/id/local-authority-district/23UB,Cheltenham Borough Council,Twinning Expenses,10020098,Procurement Cards,BUS CHG CARD - JULY 16 - REDACTED CHELTENHAM,R4401-DRM011,Services - Fees and Charges,42613,611.86,
http://statistics.data.gov.uk/id/local-authority-district/23UB,Cheltenham Borough Council,Council Tax Collection,10020098,Procurement Cards,BUS CHG CARD - JULY 16 - REDACTED- HM COURTS SERVICE,R4420-LTC001,Legal Expenses And Court Costs,42613,1362,
